fUSD/lending_fUSD_20240426
["ID","MTS","AMOUNT","RATE_DAILY","PERIOD"]
[323661812,1714151433111,-184.34,0.00010107,2]
[323661813,1714151433120,-184.34,0.0001011,2]
[323661814,1714151433129,-1570.428,0.00010112,2]
[323661815,1714151433138,-184.34,0.00010112,2]
[323661816,1714151433147,-184.34,0.00010115,2]
[323661817,1714151433157,-184.34,0.00010118,2]
[323661818,1714151433166,-184.34,0.0001012,2]
[323661819,1714151433177,-210.0,0.0001024,2]
[323661820,1714151433186,-210.0,0.0001024,2]
[323661821,1714151433196,-401.67,0.00010451,2]
[323661822,1714151433206,-504.0,0.00010685,2]
[323661823,1714151433215,-540.8,0.00010722,2]
[323661824,1714151433225,-300.0,0.000108,3]
[323661825,1714151433234,-700.0,0.000109,3]
[323661826,1714151433244,-220.8,0.00010902,2]
[323661827,1714151433253,-150.0,0.00010959,2]
[323661828,1714151433263,-10000.0,0.00010959,2]
[323661829,1714151433272,-2000.0,0.00010959,3]
[323661830,1714151433281,-2750.0,0.00011,3]
[323661831,1714151433290,-753.6094,0.00011186,2]
[323661832,1714151433300,-256.2003,0.00011187,2]
[323661833,1714151433309,-224.90583068,0.00011204,2]
[323661834,1714151433318,-1343.4914,0.00011205,2]
[323661835,1714151433327,-155.0,0.00011285,2]
[323661836,1714151433337,-1080.79724694,0.00011285,2]
[323661837,1714151433346,-305.9900726,0.00011285,2]
[323661838,1714151433355,-266.02476876,0.00011286,2]
[323661839,1714151433364,-2999.88375729,0.00011286,2]
[323661840,1714151433374,-1391.42937058,0.00011286,2]
[323661841,1714151433383,-157.23443646,0.00011286,2]
[323661842,1714151433392,-444.46701666,0.00011286,2]
[323661843,1714151433401,-206.75433877,0.00011286,2]
[323661844,1714151433410,-1236.63,0.00011286,2]
[323661845,1714151433419,-988.87,0.00011286,2]
[323661846,1714151433428,-500.0,0.00011286,2]
[323661847,1714151433437,-1235.15,0.00011286,2]
[323661848,1714151433447,-830.31866978,0.00011286,2]
[323661849,1714151433475,-537.58482089,0.00011286,2]
[323661850,1714151433494,-308.68743525,0.00011286,2]
[323661851,1714151433505,-1371.30907408,0.00011286,2]
[323661852,1714151433514,-1843.64,0.00011286,2]
[323661853,1714151433523,-707.95,0.00011286,2]
[323661854,1714151433532,-2127.85,0.00011286,2]
[323661855,1714151433542,-1311.62,0.00011286,2]
[323661856,1714151433552,-1506.79,0.00011286,2]
[323661857,1714151433561,-500.0,0.00011286,2]
[323661858,1714151433570,-500.0,0.00011286,2]
[323661859,1714151433581,-2085.01,0.00011286,2]
[323661860,1714151433590,-500.0,0.00011286,2]
[323661861,1714151433599,-932.1,0.00011286,2]
[323661862,1714151433609,-4003.61,0.00011286,2]
[323661863,1714151433618,-4772.25,0.00011286,2]
[323661864,1714151433628,-1930.08,0.00011286,2]
[323661865,1714151433637,-3025.99,0.00011286,2]
[323661866,1714151433646,-2157.8,0.00011286,2]
[323661867,1714151433655,-811.86,0.00011286,2]
[323661868,1714151433664,-272.55763742,0.00011286,2]
[323661877,1714151438310,-1030.38846551,9.366e-05,2]
[323661879,1714151438320,-912.34236258,0.00011286,2]
[323661881,1714151438329,-981.6,0.00011286,2]
[323661883,1714151438339,-1758.00665091,0.00011286,2]
[323661890,1714151438415,-630.60334909,0.00011286,2]
[323661891,1714151438425,-500.0,0.00011286,2]
[323661892,1714151438434,-1727.42,0.00011286,2]
[323661893,1714151438444,-964.21,0.00011286,2]
[323661894,1714151438453,-2658.19,0.00011286,2]
[323661895,1714151438463,-1079.37,0.00011286,2]
[323661896,1714151438471,-500.0,0.00011286,2]
[323661897,1714151438480,-500.0,0.00011286,2]
[323661898,1714151438489,-500.0,0.00011286,2]
[323661899,1714151438498,-500.0,0.00011286,2]
[323661900,1714151438508,-2743.08,0.00011286,2]
[323661901,1714151438517,-500.0,0.00011286,2]
[323661902,1714151438526,-2292.92,0.00011286,2]
[323661903,1714151438535,-5041.92,0.00011286,2]
[323661904,1714151438544,-500.0,0.00011286,2]
[323661905,1714151438553,-3565.19,0.00011286,2]
[323661906,1714151438563,-500.0,0.00011286,2]
[323661907,1714151438572,-500.0,0.00011286,2]
[323661908,1714151438581,-487.2863411,0.00011287,2]
[323661909,1714151438591,-326.68743083,0.00011287,2]
[323661910,1714151438601,-500.0,0.00011287,2]
[323661911,1714151438611,-500.0,0.00011287,2]
[323661912,1714151438620,-1168.85,0.00011287,2]
[323661913,1714151438630,-448.39,0.00011287,2]
[323661914,1714151438639,-500.0,0.00011287,2]
[323661915,1714151438648,-638.49,0.00011287,2]
[323661916,1714151438657,-578.55,0.00011287,2]
[323661917,1714151438667,-559.83,0.00011287,2]
[323661918,1714151438676,-500.0,0.00011287,2]
[323661919,1714151438685,-704.92,0.00011287,2]
[323661920,1714151438694,-461.06518279,0.00011287,2]
[323661921,1714151438704,-500.0,0.00011287,2]
[323661922,1714151438715,-1237.8,0.00011287,2]
[323661923,1714151438724,-500.0,0.00011287,2]
[323661924,1714151438733,-392.66,0.00011287,2]
[323661925,1714151438743,-500.0,0.00011287,2]
[323661927,1714151438753,-500.0,0.00011287,2]
[323661929,1714151438762,-500.0,0.00011287,2]
[323661930,1714151438772,-517.17,0.00011287,2]
[323661931,1714151438781,-500.0,0.00011287,2]
[323661932,1714151438790,-500.0,0.00011287,2]
[323661933,1714151438799,-259.33,0.00011287,2]
[323661934,1714151438808,-500.0,0.00011287,2]
[323661935,1714151438817,-500.0,0.00011287,2]
[323661936,1714151438826,-500.0,0.00011287,2]
[323661937,1714151438835,-500.0,0.00011287,2]
[323661938,1714151438844,-1595.65,0.00011287,2]
[323661939,1714151438853,-500.0,0.00011287,2]
[323661940,1714151438862,-551.26,0.00011287,2]
[323661941,1714151438871,-500.0,0.00011287,2]
[323661942,1714151438880,-500.0,0.00011287,2]
[323661943,1714151438890,-653.0,0.00011287,2]
[323661944,1714151438899,-500.0,0.00011287,2]
[323661945,1714151438908,-500.0,0.00011287,2]
[323661946,1714151438917,-500.0,0.00011287,2]
[323661947,1714151438926,-500.0,0.00011287,2]
[323661948,1714151438936,-500.0,0.00011287,2]
[323661949,1714151438945,-500.0,0.00011287,2]
[323661950,1714151438956,-500.0,0.00011287,2]
[323661951,1714151438967,-500.0,0.00011287,2]
[323661952,1714151438977,-500.0,0.00011287,2]
[323661953,1714151438986,-993.13,0.00011287,2]
[323661954,1714151438997,-201.14,0.00011287,2]
[323661955,1714151439010,-300.65,0.00011287,2]
[323661956,1714151439019,-500.0,0.00011287,2]
[323661957,1714151439029,-500.0,0.00011287,2]
[323661958,1714151439038,-500.0,0.00011287,2]
[323661959,1714151439050,-500.0,0.00011287,2]
[323661960,1714151439060,-500.0,0.00011287,2]
[323661961,1714151439069,-500.0,0.00011287,2]
[323661962,1714151439080,-500.0,0.00011287,2]
[323661963,1714151439090,-500.0,0.00011287,2]
[323661964,1714151439102,-500.0,0.00011287,2]
[323661965,1714151439111,-576.17,0.00011287,2]
[323661966,1714151439120,-500.0,0.00011287,2]
[323661967,1714151439129,-1650.81,0.00011287,2]
[323661968,1714151439138,-606.23318038,0.00011287,2]
[323661969,1714151439148,-264.06,0.00011287,2]
[323661970,1714151439156,-519.67,0.00011287,2]
[323661971,1714151439166,-1675.32,0.00011287,2]
[323661972,1714151439175,-500.0,0.00011287,2]
[323661973,1714151439184,-154.68,0.00011287,2]
[323661974,1714151439193,-500.0,0.00011287,2]
[323661975,1714151439203,-383.8,0.00011287,2]
[323661976,1714151439214,-500.0,0.00011287,2]
[323661977,1714151439222,-201.9,0.00011287,2]
[323661978,1714151439232,-231.28,0.00011287,2]
[323661979,1714151439241,-500.0,0.00011287,2]
[323661980,1714151439249,-354.87,0.00011287,2]
[323661981,1714151439259,-500.0,0.00011287,2]
[323661982,1714151439268,-404.32,0.00011287,2]
[323661983,1714151439277,-500.0,0.00011287,2]
[323661984,1714151439287,-605.08,0.00011287,2]
[323661985,1714151439296,-354.03056168,0.00011287,2]
[323661986,1714151439306,-181.28,0.00011287,2]
[323661987,1714151439316,-500.0,0.00011287,2]
[323661988,1714151439325,-500.0,0.00011287,2]
[323661989,1714151439335,-1825.49,0.00011287,2]
[323661990,1714151439344,-500.0,0.00011287,2]
[323661991,1714151439353,-500.0,0.00011287,2]
[323661992,1714151439363,-248.77,0.00011287,2]
[323661993,1714151439372,-405.20267192,0.00011287,2]
[323661994,1714151439381,-500.0,0.00011287,2]
[323661995,1714151439392,-500.0,0.00011287,2]
[323661996,1714151439401,-367.79,0.00011287,2]
[323661997,1714151439411,-500.0,0.00011287,2]
[323661998,1714151439419,-500.0,0.00011287,2]
[323661999,1714151439429,-500.0,0.00011287,2]
[323662000,1714151439438,-500.0,0.00011287,2]
[323662001,1714151439448,-500.0,0.00011287,2]
[323662002,1714151439457,-500.0,0.00011287,2]
[323662003,1714151439467,-500.0,0.00011287,2]
[323662004,1714151439476,-500.0,0.00011287,2]
[323662005,1714151439485,-689.79,0.00011287,2]
[323662006,1714151439494,-386.79,0.00011287,2]
[323662007,1714151439504,-500.0,0.00011287,2]
[323662008,1714151439513,-500.0,0.00011287,2]
[323662009,1714151439522,-614.4,0.00011287,2]
[323662010,1714151439531,-500.0,0.00011287,2]
[323662011,1714151439540,-500.0,0.00011287,2]
[323662012,1714151439549,-500.0,0.00011287,2]
[323662013,1714151439558,-625.38,0.00011287,2]
[323662014,1714151439567,-500.0,0.00011287,2]
[323662015,1714151439577,-500.0,0.00011287,2]
[323662016,1714151439586,-626.78,0.00011287,2]
[323662017,1714151439595,-500.0,0.00011287,2]
[323662018,1714151439604,-228.05,0.00011287,2]
[323662019,1714151439613,-500.0,0.00011287,2]
[323662020,1714151439622,-495.18090382,0.00011287,2]
[323662021,1714151439632,-500.0,0.00011287,2]
[323662022,1714151439642,-500.0,0.00011287,2]
[323662023,1714151439652,-500.0,0.00011287,2]
[323662024,1714151439661,-500.0,0.00011287,2]
[323662025,1714151439671,-500.0,0.00011287,2]
[323662026,1714151439680,-500.0,0.00011287,2]
[323662027,1714151439689,-727.96,0.00011287,2]
[323662028,1714151439699,-334.53,0.00011287,2]
[323662029,1714151439709,-500.0,0.00011287,2]
[323662030,1714151439719,-500.0,0.00011287,2]
[323662031,1714151439729,-500.0,0.00011287,2]
[323662032,1714151439738,-500.0,0.00011287,2]
[323662033,1714151439748,-500.0,0.00011287,2]
[323662034,1714151439757,-500.0,0.00011287,2]
[323662035,1714151439767,-586.56,0.00011287,2]
[323662036,1714151439776,-500.0,0.00011287,2]
[323662037,1714151439786,-500.0,0.00011287,2]
[323662038,1714151439795,-567.26,0.00011287,2]
[323662039,1714151439805,-500.0,0.00011287,2]
[323662040,1714151439816,-500.0,0.00011287,2]
[323662041,1714151439826,-658.81,0.00011287,2]
[323662042,1714151439835,-500.0,0.00011287,2]
[323662043,1714151439846,-346.42,0.00011287,2]
[323662044,1714151439855,-500.0,0.00011287,2]
[323662045,1714151439867,-238.0,0.00011287,2]
[323662046,1714151439877,-500.0,0.00011287,2]
[323662047,1714151439886,-500.0,0.00011287,2]
[323662048,1714151439895,-180.02,0.00011287,2]
[323662049,1714151439904,-500.0,0.00011287,2]
[323662050,1714151439915,-500.0,0.00011287,2]
[323662051,1714151439924,-565.85,0.00011287,2]
[323662052,1714151439933,-500.0,0.00011287,2]
[323662053,1714151439944,-501.4029515,0.00011287,2]
[323662054,1714151439954,-500.0,0.00011287,2]
[323662055,1714151439966,-2096.55,0.00011287,2]
[323662056,1714151439975,-500.0,0.00011287,2]
[323662057,1714151439984,-500.0,0.00011287,2]
[323662058,1714151439993,-500.0,0.00011287,2]
[323662059,1714151440003,-660.54,0.00011287,2]
[323662060,1714151440018,-500.0,0.00011287,2]
[323662061,1714151440027,-500.0,0.00011287,2]
[323662062,1714151440036,-500.0,0.00011287,2]
[323662063,1714151440047,-1713.61,0.00011287,2]
[323662064,1714151440059,-1168.69,0.00011287,2]
[323662065,1714151440069,-500.0,0.00011287,2]
[323662066,1714151440078,-500.0,0.00011287,2]
[323662067,1714151440090,-500.0,0.00011287,2]
[323662068,1714151440099,-500.0,0.00011287,2]
[323662069,1714151440109,-500.0,0.00011287,2]
[323662070,1714151440119,-500.0,0.00011287,2]
[323662071,1714151440129,-500.0,0.00011287,2]
[323662072,1714151440139,-9507.7,0.00011287,2]
[323662073,1714151440149,-500.0,0.00011287,2]
[323662074,1714151440158,-500.0,0.00011287,2]
[323662076,1714151440167,-2155.86,0.00011287,2]
[323662077,1714151440177,-662.79,0.00011287,2]
[323662078,1714151440186,-500.0,0.00011287,2]
[323662079,1714151440194,-505.32,0.00011287,2]
[323662080,1714151440204,-502.75305929,0.00011287,2]
[323662081,1714151440214,-500.0,0.00011287,2]
[323662082,1714151440224,-500.0,0.00011287,2]
[323662084,1714151440233,-1136.1,0.00011287,2]
[323662086,1714151440242,-500.0,0.00011287,2]
[323662088,1714151440252,-500.0,0.00011287,2]
[323662090,1714151440262,-500.0,0.00011287,2]
[323662091,1714151440271,-664.71,0.00011287,2]
[323662092,1714151440280,-500.0,0.00011287,2]
[323662093,1714151440289,-500.0,0.00011287,2]
[323662094,1714151440298,-3668.56,0.00011287,2]
[323662095,1714151440308,-500.0,0.00011287,2]
[323662096,1714151440317,-500.0,0.00011287,2]
[323662097,1714151440329,-500.0,0.00011287,2]
[323662098,1714151440339,-3129.77,0.00011287,2]
[323662099,1714151440349,-317.01,0.00011287,2]
[323662100,1714151440358,-500.0,0.00011287,2]
[323662101,1714151440368,-500.0,0.00011287,2]
[323662102,1714151440377,-1658.06,0.00011287,2]
[323662103,1714151440386,-6601.57,0.00011287,2]
[323662104,1714151440395,-500.0,0.00011287,2]
[323662105,1714151440404,-500.0,0.00011287,2]
[323662106,1714151440414,-500.0,0.00011287,2]
[323662107,1714151440425,-8618.17,0.00011287,2]
[323662108,1714151440434,-567.24366844,0.00011287,2]
[323662109,1714151440443,-500.0,0.00011287,2]
[323662110,1714151440452,-500.0,0.00011287,2]
[323662111,1714151440463,-1052.64,0.00011287,2]
[323662112,1714151440473,-2744.18,0.00011287,2]
[323662113,1714151440485,-1813.16,0.00011287,2]
[323662114,1714151440494,-500.0,0.00011287,2]
[323662115,1714151440503,-304.58,0.00011287,2]
[323662116,1714151440512,-500.0,0.00011287,2]
[323662117,1714151440522,-1562.11,0.00011287,2]
[323662118,1714151440531,-500.0,0.00011287,2]
[323662119,1714151440541,-1924.96,0.00011287,2]
[323662120,1714151440550,-500.0,0.00011287,2]
[323662121,1714151440560,-1536.97,0.00011287,2]
[323662122,1714151440569,-1240.32,0.00011287,2]
[323662123,1714151440578,-3849.75,0.00011287,2]
[323662124,1714151440587,-500.0,0.00011287,2]
[323662125,1714151440596,-3065.16,0.00011287,2]
[323662126,1714151440606,-5407.27,0.00011287,2]
[323662127,1714151440616,-500.0,0.00011287,2]
[323662128,1714151440625,-500.0,0.00011287,2]
[323662129,1714151440634,-500.0,0.00011287,2]
[323662130,1714151440643,-590.75,0.00011287,2]
[323662131,1714151440652,-374.91214782,0.00011287,2]
[323662132,1714151440661,-500.0,0.00011287,2]
[323662133,1714151440671,-7048.43,0.00011287,2]
[323662134,1714151440680,-500.0,0.00011287,2]
[323662135,1714151440689,-1956.15,0.00011287,2]
[323662136,1714151440698,-4098.93,0.00011287,2]
[323662137,1714151440707,-1557.71,0.00011287,2]
[323662138,1714151440719,-531.28,0.00011287,2]
[323662139,1714151440729,-1556.15,0.00011287,2]
[323662140,1714151440738,-500.0,0.00011287,2]
[323662141,1714151440750,-2225.27,0.00011287,2]
[323662143,1714151440759,-802.71,0.00011287,2]
[323662145,1714151440768,-500.0,0.00011287,2]
[323662146,1714151440777,-1132.16,0.00011287,2]
[323662147,1714151440786,-500.0,0.00011287,2]
[323662148,1714151440795,-500.0,0.00011287,2]
[323662149,1714151440804,-500.0,0.00011287,2]
[323662150,1714151440813,-1079.18,0.00011287,2]
[323662152,1714151440822,-500.0,0.00011287,2]
[323662154,1714151440832,-500.0,0.00011287,2]
[323662156,1714151440841,-500.0,0.00011287,2]
[323662158,1714151440850,-500.0,0.00011287,2]
[323662160,1714151440860,-3443.09,0.00011287,2]
[323662162,1714151440869,-500.0,0.00011287,2]
[323662164,1714151440878,-500.0,0.00011287,2]
[323662166,1714151440887,-2782.76,0.00011287,2]
[323662168,1714151440896,-240.03321496,0.00011287,2]
[323662170,1714151440905,-500.0,0.00011287,2]
[323662171,1714151440915,-500.0,0.00011287,2]
[323662172,1714151440924,-8661.4,0.00011287,2]
[323662173,1714151440933,-500.0,0.00011287,2]
[323662174,1714151440942,-636.13,0.00011287,2]
[323662175,1714151440953,-500.0,0.00011287,2]
[323662176,1714151440965,-500.0,0.00011287,2]
[323662177,1714151440974,-500.0,0.00011287,2]
[323662178,1714151440983,-5049.04,0.00011287,2]
[323662179,1714151440993,-500.0,0.00011287,2]
[323662180,1714151441003,-14670.52,0.00011287,2]
[323662181,1714151441016,-500.0,0.00011287,2]
[323662182,1714151441027,-1993.01,0.00011287,2]
[323662183,1714151441036,-2395.87,0.00011287,2]
[323662184,1714151441046,-427.44,0.00011287,2]
[323662185,1714151441057,-500.0,0.00011287,2]
[323662186,1714151441066,-500.0,0.00011287,2]
[323662187,1714151441076,-4196.83,0.00011287,2]
[323662188,1714151441088,-565.34977281,0.00011287,2]
[323662189,1714151441097,-500.0,0.00011287,2]
[323662190,1714151441106,-1095.0,0.00011287,2]
[323662191,1714151441125,-670.82,0.00011287,2]
[323662192,1714151441136,-1152.84,0.00011287,2]
[323662193,1714151441146,-4023.5,0.00011287,2]
[323662194,1714151441155,-4876.99,0.00011287,2]
[323662195,1714151441164,-2364.3,0.00011287,2]
[323662196,1714151441174,-500.0,0.00011287,2]
[323662197,1714151441184,-885.65,0.00011287,2]
[323662198,1714151441194,-500.0,0.00011287,2]
[323662199,1714151441204,-500.0,0.00011287,2]
[323662200,1714151441215,-500.0,0.00011287,2]
[323662201,1714151441225,-1389.65,0.00011287,2]
[323662202,1714151441234,-1798.93,0.00011287,2]
[323662203,1714151441243,-500.0,0.00011287,2]
[323662204,1714151441252,-645.75,0.00011287,2]
[323662205,1714151441261,-680.25,0.00011287,2]
[323662206,1714151441271,-500.0,0.00011287,2]
[323662207,1714151441280,-500.0,0.00011287,2]
[323662208,1714151441289,-500.0,0.00011287,2]
[323662209,1714151441299,-500.0,0.00011287,2]
[323662210,1714151441308,-500.0,0.00011287,2]
[323662211,1714151441317,-934.79,0.00011287,2]
[323662212,1714151441327,-500.0,0.00011287,2]
[323662213,1714151441335,-500.0,0.00011287,2]
[323662214,1714151441345,-500.0,0.00011287,2]
[323662215,1714151441354,-1820.94,0.00011287,2]
[323662216,1714151441365,-1868.12,0.00011287,2]
[323662217,1714151441374,-500.0,0.00011287,2]
[323662218,1714151441383,-500.0,0.00011287,2]
[323662219,1714151441392,-500.0,0.00011287,2]
[323662220,1714151441402,-1369.92,0.00011287,2]
[323662221,1714151441411,-347.14128329,0.00011287,2]
[323662222,1714151441421,-875.0,0.00011287,2]
[323662223,1714151441430,-2640.05,0.00011287,2]
[323662224,1714151441440,-1910.12,0.00011287,2]
[323662225,1714151441449,-500.0,0.00011287,2]
[323662226,1714151441459,-500.0,0.00011287,2]
[323662227,1714151441469,-500.0,0.00011287,2]
[323662228,1714151441479,-500.0,0.00011287,2]
[323662229,1714151441489,-500.0,0.00011287,2]
[323662230,1714151441498,-500.0,0.00011287,2]
[323662231,1714151441508,-1127.58,0.00011287,2]
[323662232,1714151441517,-500.0,0.00011287,2]
[323662233,1714151441527,-500.0,0.00011287,2]
[323662234,1714151441536,-540.7,0.00011287,2]
[323662235,1714151441545,-500.0,0.00011287,2]
[323662236,1714151441555,-500.0,0.00011287,2]
[323662237,1714151441564,-500.0,0.00011287,2]
[323662238,1714151441574,-500.0,0.00011287,2]
[323662239,1714151441583,-6360.34,0.00011287,2]
[323662240,1714151441593,-500.0,0.00011287,2]
[323662241,1714151441602,-500.0,0.00011287,2]
[323662242,1714151441612,-4505.41,0.00011287,2]
[323662243,1714151441622,-1576.88,0.00011287,2]
[323662244,1714151441631,-500.0,0.00011287,2]
[323662245,1714151441640,-1518.8,0.00011287,2]
[323662246,1714151441649,-500.0,0.00011287,2]
[323662247,1714151441659,-4342.29,0.00011287,2]
[323662248,1714151441668,-500.0,0.00011287,2]
[323662249,1714151441678,-500.0,0.00011287,2]
[323662250,1714151441983,-233.91,0.00011287,2]
[323662251,1714151441993,-6439.66,0.00011287,2]
[323662252,1714151442003,-864.32,0.00011287,2]
[323662253,1714151442014,-3803.48,0.00011287,2]
[323662254,1714151442023,-500.0,0.00011287,2]
[323662255,1714151442033,-558.69566553,0.00011287,2]
[323662256,1714151442042,-500.0,0.00011287,2]
[323662257,1714151442053,-9175.58,0.00011287,2]
[323662258,1714151442063,-500.0,0.00011287,2]
[323662259,1714151442072,-535585.18181,0.00011288,2]
[323662260,1714151442092,-127932.181689,0.00011288,2]
[323662261,1714151442121,-36012.26198816,0.00011288,2]
[323662262,1714151442130,-500.0,0.00011304,2]
[323662263,1714151442140,-500.0,0.00011304,2]
[323662264,1714151442149,-500.0,0.00011304,2]
[323662265,1714151442158,-500.0,0.00011304,2]
[323662266,1714151442167,-500.0,0.00011304,2]
[323662267,1714151442176,-500.0,0.00011304,2]
[323662268,1714151442185,-500.0,0.00011304,2]
[323662269,1714151442194,-500.0,0.00011304,2]
[323662270,1714151442203,-500.0,0.00011304,2]
[323662271,1714151442213,-500.0,0.00011304,2]
[323662272,1714151442222,-658.36,0.00011304,2]
[323662273,1714151442232,-500.0,0.00011304,2]
[323662274,1714151442241,-478.93980884,0.00011304,2]
[323662275,1714151442250,-523.58,0.00011304,2]
[323662276,1714151442259,-500.0,0.00011304,2]
[323662277,1714151442272,-813.29,0.00011304,2]
[323662278,1714151442281,-500.0,0.00011304,2]
[323662279,1714151442291,-500.0,0.00011304,2]
[323662280,1714151442300,-756.94,0.00011304,2]
[323662281,1714151442310,-500.0,0.00011304,2]
[323662282,1714151442320,-752.56,0.00011304,2]
[323662283,1714151442329,-500.0,0.00011304,2]
[323662284,1714151442338,-699.65,0.00011304,2]
[323662285,1714151442348,-500.0,0.00011304,2]
[323662286,1714151442357,-554.32,0.00011304,2]
[323662287,1714151442367,-500.0,0.00011304,2]
[323662288,1714151442377,-1480.24,0.00011304,2]
[323662289,1714151442386,-500.0,0.00011304,2]
[323662290,1714151442396,-500.0,0.00011304,2]
[323662291,1714151442406,-500.0,0.00011304,2]
[323662292,1714151442415,-500.0,0.00011304,2]
[323662293,1714151442425,-500.0,0.00011304,2]
[323662294,1714151442435,-500.0,0.00011304,2]
[323662295,1714151442444,-901.02,0.00011304,2]
[323662296,1714151442454,-500.0,0.00011304,2]
[323662297,1714151442466,-500.0,0.00011304,2]
[323662298,1714151442475,-777.34,0.00011304,2]
[323662299,1714151442484,-718.69,0.00011304,2]
[323662300,1714151442494,-500.0,0.00011304,2]
[323662301,1714151442504,-500.0,0.00011304,2]
[323662302,1714151442514,-1647.51,0.00011304,2]
[323662303,1714151442524,-823.53,0.00011304,2]
[323662304,1714151442533,-500.0,0.00011304,2]
[323662305,1714151442542,-1121.33,0.00011304,2]
[323662306,1714151442552,-1146.69,0.00011304,2]
[323662307,1714151442562,-133.74820301,0.00011304,2]
[323662308,1714151442575,-366.25179699,0.00011304,2]
[323662309,1714151442584,-500.0,0.00011304,2]
[323662310,1714151442595,-992.14,0.00011304,2]
[323662311,1714151442605,-500.0,0.00011304,2]
[323662312,1714151442614,-867.84,0.00011304,2]
[323662313,1714151442624,-500.0,0.00011304,2]
[323662314,1714151442633,-540.36,0.00011304,2]
[323662315,1714151442643,-1324.49,0.00011304,2]
[323662316,1714151442652,-1035.88,0.00011304,2]
[323662317,1714151442661,-500.0,0.00011304,2]
[323662318,1714151442672,-1360.39,0.00011304,2]
[323662319,1714151442681,-500.0,0.00011304,2]
[323662320,1714151442691,-500.0,0.00011304,2]
[323662321,1714151442700,-500.0,0.00011304,2]
[323662322,1714151442709,-500.0,0.00011304,2]
[323662323,1714151442720,-500.0,0.00011304,2]
[323662324,1714151442729,-500.0,0.00011304,2]
[323662325,1714151442738,-500.0,0.00011304,2]
[323662326,1714151442748,-894.04,0.00011304,2]
[323662327,1714151442756,-500.0,0.00011304,2]
[323662328,1714151442766,-214.91258888,0.00011304,2]
[323662334,1714151443146,-285.08741112,0.00011304,2]
[323662335,1714151443155,-500.0,0.00011304,2]
[323662336,1714151443164,-500.0,0.00011304,2]
[323662337,1714151443173,-543.43,0.00011304,2]
[323662338,1714151443182,-500.0,0.00011304,2]
[323662339,1714151443191,-500.0,0.00011304,2]
[323662340,1714151443200,-327.42599189,0.00011304,2]
[323662341,1714151443211,-172.57400811,0.00011304,2]
[323662342,1714151443222,-500.0,0.00011304,2]
[323662343,1714151443232,-500.0,0.00011304,2]
[323662344,1714151443241,-102.47599189,0.00011304,2]
[323662346,1714151443252,-287.38234109,0.00011304,2]
[323662349,1714151443264,-110.14166702,0.00011304,2]
[323662351,1714151443273,-251.6770096,0.00011304,2]
[323662353,1714151443663,-500.0,0.00011286,2]
[323662354,1714151443674,-500.0,0.00011286,2]
[323662355,1714151443683,-1479.02469971,0.00011286,2]
[323662356,1714151443694,-2300.25,0.00011286,2]
[323662357,1714151443748,-40310.94093117,0.00011286,2]